bitfinex/quotes_ETHUSD_20250625
["timestamp","ask_amount","ask_price","bid_price","bid_amount"]
[1750866622897,6.09444931,2409.4,2408.8,4.93026762]
[1750866623104,6.09444931,2409.4,2408.8,10.7789]
[1750866623105,0.2072,2408.9,2408.8,10.7789]
[1750866623348,0.2072,2408.9,2408.6,4.15173889]
[1750866623349,4.15145225,2408.8,2408.2,0.8293]
[1750866623635,0.2072,2408.4,2408.3,4.15221124]
[1750866623830,0.2072,2408.4,2408.2,5.47987594]
[1750866623995,0.2072,2408.4,2408.3,4.1523066]
[1750866624191,0.2072,2408.4,2408.2,5.47990983]
[1750866624416,4.15162114,2408.7,2408.0,4.15273685]
[1750866624603,0.2072,2408.1,2408.0,4.15282392]
[1750866624807,0.2072,2408.1,2408.0,14.15282392]
[1750866625503,0.2072,2408.1,2408.0,10.0]
[1750866625705,0.2072,2408.1,2408.0,14.15282392]
[1750866625899,0.2072,2408.1,2408.0,4.15282392]
[1750866626301,0.2072,2408.1,2408.0,14.15282392]
[1750866626705,4.15179142,2408.6,2408.0,14.15282392]
[1750866627041,23.383328,2408.6,2407.7,5.41489378]
[1750866627218,4.15240116,2408.3,2407.7,5.41489378]
[1750866627422,4.15265146,2408.1,2407.2,2.0901815]
[1750866627606,4.1528993,2408.0,2407.3,6.22521933]
[1750866627810,1.939,2407.9,2407.6,4.15343071]
[1750866628001,1.939,2407.8,2407.7,4.15331906]
[1750866628216,1.939,2407.8,2407.6,4.15344739]
[1750866628530,1.939,2408.0,2407.5,10.0]
[1750866628728,10.786,2408.5,2407.8,4.15316886]
[1750866628929,1.94,2408.4,2408.2,4.15236785]
[1750866629131,1.94,2408.4,2408.0,4.15273318]
[1750866629297,1.94,2408.4,2407.6,1.7741]
[1750866629506,1.94,2408.4,2408.2,4.15238018]
[1750866629800,1.94,2408.4,2407.9,4.15284199]
[1750866630011,1.94,2408.4,2408.0,4.15273758]
[1750866630216,1.94,2408.4,2408.1,4.15256136]
[1750866630508,1.94,2408.4,2408.2,4.15246758]
[1750866630699,1.94,2408.4,2407.8,10.0]
[1750866630904,1.94,2408.4,2408.1,4.15254047]
[1750866631104,1.94,2408.4,2408.1,4.15255618]
[1750866631914,1.94,2408.4,2408.0,4.15278573]
[1750866632116,1.94,2408.4,2408.1,4.15262514]
[1750866632506,1.94,2408.4,2408.0,4.15273665]
[1750866632903,1.94,2408.4,2407.9,4.15291073]
[1750866633103,6.09216803,2408.4,2407.6,1.7741]
[1750866633316,1.94,2408.4,2407.9,4.15296774]
[1750866633521,1.94,2408.4,2408.1,4.15263274]
[1750866633911,1.94,2408.4,2408.0,4.15274621]
[1750866634311,1.94,2408.4,2408.1,4.15260199]
[1750866634907,1.94,2408.4,2408.0,4.15273483]
[1750866635113,1.94,2408.4,2408.1,4.15260389]
[1750866636119,1.94,2408.4,2408.2,4.15240364]
[1750866636326,12.726,2408.5,2408.2,4.15234954]
[1750866636528,1.94,2408.5,2408.4,4.15213419]
[1750866636741,1.94,2408.5,2408.4,4.90313419]
[1750866637344,1.94,2408.9,2408.5,4.15195592]
[1750866637545,1.94,2408.9,2408.7,4.15160352]
[1750866637742,1.94,2409.3,2409.0,4.15100951]
[1750866638044,1.94,2409.3,2409.0,4.15092897]
[1750866638420,1.94,2409.3,2409.1,4.15083369]
[1750866639615,0.2072,2409.1,2409.0,4.15098295]
[1750866639827,1.94,2409.3,2409.0,4.15098295]
[1750866640212,1.94,2409.3,2408.9,4.91210326]
[1750866640428,16.88043622,2409.4,2408.9,4.91212755]
[1750866640630,16.88043622,2409.4,2409.2,4.15069478]
[1750866640631,12.73,2409.4,2409.2,4.15069478]
[1750866640943,0.2072,2409.3,2409.2,4.15069478]
[1750866641449,0.2072,2409.3,2409.0,16.45495626]
[1750866641922,4.15058951,2409.3,2408.9,0.7609]
[1750866642120,0.2072,2409.0,2408.9,0.7609]
[1750866642448,0.2072,2409.0,2408.8,16.4553352]
[1750866642746,0.2072,2409.0,2408.9,4.15127236]
[1750866644444,0.2072,2409.0,2408.8,16.45532999]
[1750866644747,0.2072,2409.0,2408.9,4.15127236]
[1750866645051,0.2072,2409.0,2408.8,16.45534459]
[1750866645239,0.2072,2409.0,2408.9,4.15127236]
[1750866645746,0.2072,2409.0,2408.8,16.45536746]
[1750866646130,0.2072,2409.0,2408.9,4.15127236]
[1750866647319,0.2072,2409.0,2408.9,5.83586003]
[1750866648332,1.94,2409.4,2409.0,4.77675832]
[1750866648531,1.94,2409.4,2409.1,4.15092773]
[1750866648726,1.94,2409.4,2409.0,4.77683444]
[1750866648947,0.2072,2409.1,2409.0,4.77683444]
[1750866650847,0.2072,2409.1,2409.0,6.02248311]
[1750866651752,1.94,2409.4,2409.3,4.15058315]
[1750866652086,7.83857929,2409.6,2409.3,4.15058315]
[1750866652638,7.83857929,2409.6,2409.4,4.15038765]
[1750866653019,0.2072,2409.4,2409.3,4.15050902]
[1750866653266,7.83857929,2409.6,2409.3,4.15050902]
[1750866653939,0.2072,2409.9,2409.5,4.15023863]
[1750866654138,0.2072,2409.9,2409.7,16.45376259]
[1750866654334,7.83857929,2410.2,2409.3,1.68458767]
[1750866654581,0.2072,2409.5,2409.3,10.0]
[1750866656135,0.2072,2409.5,2409.4,4.15041089]
[1750866656577,0.2072,2409.5,2409.3,14.15048889]
[1750866656942,0.2072,2409.5,2409.3,10.0]
[1750866657283,0.2072,2409.5,2409.1,14.15084053]
[1750866657572,0.2072,2409.2,2409.0,1.4194961]
[1750866657881,0.2072,2409.1,2409.0,1.4194961]
[1750866658231,0.2072,2409.1,2409.0,15.57059614]
[1750866660396,0.2072,2409.1,2409.0,0.6257961]
[1750866660693,0.2072,2409.1,2409.0,4.77689614]
[1750866660851,0.2072,2409.4,2409.3,4.15058315]
[1750866661051,0.2072,2409.4,2409.3,16.45456157]
[1750866661456,2.1412,2409.8,2409.3,13.36858963]
[1750866661651,2.1412,2409.8,2409.6,4.14993661]
[1750866661855,2.1412,2409.8,2409.5,4.15014134]
[1750866662273,6.08378537,2409.8,2409.3,23.52846092]
[1750866662479,0.2072,2409.5,2409.3,23.52846092]
[1750866662671,0.2072,2409.5,2409.4,4.15041089]
[1750866662852,0.2072,2409.5,2409.3,16.45449527]
[1750866663066,0.2072,2409.5,2409.4,4.15041089]
[1750866664061,0.2072,2409.5,2409.4,4.87572892]
[1750866664792,0.2072,2409.7,2409.6,4.15002563]
[1750866668386,0.2072,2409.7,2409.5,4.15017679]
[1750866668690,0.2072,2409.7,2409.5,4.15020326]
[1750866669076,0.2072,2409.7,2409.4,0.72531803]
[1750866669276,0.2072,2409.7,2409.3,16.45455474]
[1750866669785,0.2072,2409.7,2409.4,4.15038982]
[1750866669988,0.2072,2409.7,2409.3,12.30397842]
[1750866669989,0.2072,2409.7,2409.5,4.15010578]
[1750866670689,0.2072,2409.7,2409.3,12.30397842]
[1750866670890,4.14948049,2410.0,2409.5,4.15021316]
[1750866671094,5.54168647,2410.0,2409.5,4.15021316]
[1750866671599,4.1495525,2409.9,2409.5,4.15021316]
[1750866671890,5.54167646,2410.0,2409.5,4.15021316]
[1750866672208,0.2072,2409.5,2409.3,10.0]
[1750866672557,4.14981186,2409.8,2409.3,14.15049173]
[1750866672762,0.2072,2409.3,2409.2,14.96451694]
[1750866673605,4.14925816,2410.1,2409.6,4.14996815]
[1750866673800,4.14925816,2410.1,2409.7,4.14988992]
[1750866674108,13.92172143,2410.2,2409.7,4.14988992]
[1750866674410,0.2072,2409.8,2409.7,4.96728992]
[1750866674624,7.83857929,2410.2,2410.0,4.1493709]
[1750866674777,8.04577929,2410.2,2410.1,4.14920542]
[1750866674967,0.2072,2410.2,2410.1,4.14920542]
[1750866675467,0.2072,2410.2,2410.0,4.14925774]
[1750866675660,0.2072,2410.2,2410.1,4.14920542]
[1750866676694,0.2072,2410.2,2410.0,4.14928668]
[1750866676994,1.934,2410.4,2410.0,1.53698023]
[1750866677295,1.934,2410.4,2409.8,7.071]
[1750866677296,2.1412,2410.4,2410.1,4.1491989]
[1750866677496,1.934,2410.4,2409.9,11.21954041]
[1750866677795,0.2072,2410.1,2409.8,4.14958148]
[1750866677996,1.934,2410.4,2409.8,4.14958148]
[1750866677997,1.934,2410.4,2410.0,4.14937759]
[1750866678292,0.2072,2410.2,2410.0,4.14928612]
[1750866678598,0.2072,2410.2,2409.9,4.14945837]
[1750866678968,0.2072,2410.2,2410.0,4.14931433]
[1750866679562,0.2072,2410.2,2410.1,4.14920542]
[1750866679776,0.2072,2410.2,2409.8,9.44000482]
[1750866680062,0.2072,2410.2,2410.1,4.14920542]
[1750866680462,1.934,2410.4,2410.1,0.7626]
[1750866680705,4.14893691,2410.3,2409.9,11.53003152]
[1750866680876,0.2072,2410.2,2409.8,14.14960712]
[1750866681061,0.2072,2410.2,2409.8,10.0]
[1750866681263,4.14896936,2410.3,2409.8,14.14970709]
[1750866681488,6.08269276,2410.4,2409.8,14.14970709]
[1750866681489,0.2072,2410.0,2409.8,14.14970709]
[1750866681892,0.2072,2410.0,2409.8,10.0]
[1750866682111,0.2072,2410.0,2409.8,14.14962886]
[1750866682604,0.2072,2409.8,2409.2,0.2072]
[1750866682763,0.2072,2409.8,2409.1,0.829]
[1750866682764,0.2072,2409.8,2409.3,4.15058251]
[1750866683098,6.08060794,2409.9,2409.4,4.15030422]
[1750866683297,4.1497652,2409.8,2409.3,14.15052721]
[1750866683487,0.2072,2409.4,2409.3,14.15052721]
[1750866684196,0.2072,2409.4,2409.3,4.15052721]
[1750866684499,0.2072,2409.4,2409.0,4.77689239]
[1750866684700,0.2072,2409.1,2409.0,14.77680167]
[1750866685063,0.2072,2409.1,2409.0,10.6257961]
[1750866685280,0.2072,2409.1,2409.0,14.77689614]
[1750866685506,4.14998678,2409.7,2409.2,4.15074299]
[1750866685675,0.2072,2409.3,2409.2,4.15074299]
[1750866685874,0.2072,2409.3,2409.2,6.0435069]
[1750866686080,0.2072,2409.3,2409.2,4.15074299]
[1750866686283,0.2072,2409.3,2409.2,4.15075543]
[1750866686996,0.2072,2409.3,2409.2,4.92465543]
[1750866688200,0.2072,2409.3,2409.2,0.7739]
[1750866688394,0.2072,2409.3,2409.2,4.92465543]
[1750866688910,0.2072,2409.3,2409.0,21.84482169]
[1750866689120,0.2072,2409.3,2409.2,4.15075543]
[1750866689281,4.15086364,2409.2,2409.0,0.6257961]
[1750866689646,0.60818636,2409.2,2409.0,0.6257961]
[1750866689818,1.931,2409.3,2409.0,0.6257961]
[1750866689978,1.931,2409.3,2409.1,4.15088012]
[1750866690480,1.931,2409.3,2409.0,0.6257961]
[1750866690686,6.08166496,2409.3,2409.0,0.6257961]
[1750866690981,4.15078039,2409.2,2409.0,0.6257961]
[1750866691211,4.15092773,2409.1,2409.0,0.6257961]
[1750866691379,4.15085481,2409.2,2409.0,0.6257961]
[1750866691581,4.15045316,2409.4,2409.0,0.6257961]
[1750866691805,1.931,2409.4,2409.0,0.6257961]
[1750866691988,10.0,2409.8,2409.0,1.4309961]
[1750866692193,1.931,2409.7,2409.1,4.15081657]
[1750866692390,1.931,2409.7,2409.2,4.1507518]
[1750866692611,1.931,2409.7,2409.0,6.95552454]
[1750866692815,4.15006965,2409.6,2409.1,4.15084569]
[1750866693524,4.15024743,2409.5,2409.0,0.6257961]
[1750866693732,4.15059111,2409.3,2409.0,0.6257961]
[1750866694027,4.15050172,2409.4,2409.0,0.6257961]
[1750866694386,4.15054416,2409.4,2409.0,0.6257961]
[1750866694718,4.15070072,2409.3,2409.0,0.6257961]
[1750866695423,4.15092773,2409.1,2409.0,0.6257961]
[1750866697100,1.931,2409.2,2409.0,0.6257961]
[1750866697304,6.0818523,2409.2,2409.0,0.6257961]
[1750866697504,4.15092773,2409.1,2409.0,0.6257961]
[1750866697893,1.931,2409.2,2409.0,0.6257961]
[1750866698094,3.87240701,2409.2,2409.0,0.6257961]
[1750866698289,1.931,2409.2,2409.0,0.6257961]
[1750866698697,1.931,2409.2,2409.0,4.77676108]
[1750866699196,1.931,2409.2,2409.0,0.6257961]
[1750866700332,6.08185548,2409.2,2409.0,0.6257961]
[1750866700623,4.15092773,2409.1,2409.0,0.6257961]
[1750866702198,4.7591205,2409.1,2409.0,0.6257961]
[1750866703436,11.8271205,2409.1,2409.0,0.6257961]
[1750866705032,4.15185459,2408.6,2408.1,4.15264034]
[1750866705220,4.15201552,2408.5,2408.0,14.95305467]
[1750866705419,0.2072,2408.3,2408.0,14.95305467]
[1750866705929,0.2072,2408.3,2408.1,4.15261704]
[1750866706099,0.2072,2408.3,2408.2,4.15247902]
[1750866706305,0.2072,2408.3,2408.2,14.15247902]
[1750866706609,0.2072,2408.3,2408.2,10.0]
[1750866707912,0.2072,2408.3,2408.2,14.15247902]
[1750866708117,0.2072,2408.3,2408.0,0.8003]
[1750866708337,0.2072,2408.1,2408.0,4.15279384]
[1750866708509,11.98986302,2408.9,2408.3,4.15225602]
[1750866708830,11.98986302,2408.9,2408.3,4.95252837]
[1750866708831,8.999,2408.8,2408.3,4.95252837]
[1750866709035,0.2072,2408.5,2408.4,4.15213419]
[1750866709332,1.932,2408.8,2408.7,4.15161705]
[1750866709656,0.2072,2408.7,2408.6,4.15178942]
[1750866712322,0.2072,2408.7,2408.3,5.15973302]
[1750866712526,0.2072,2408.7,2408.5,4.15188326]
[1750866712724,0.2072,2408.7,2408.6,4.15178942]
[1750866712914,0.2072,2408.7,2408.5,4.15186566]
[1750866713229,0.2072,2408.7,2408.5,4.15189427]
[1750866713546,0.2072,2408.7,2408.3,1.0075]
[1750866713748,0.2072,2408.5,2408.3,0.8003]
[1750866713902,0.2072,2408.5,2408.3,4.95250782]
[1750866714103,4.15161705,2408.7,2408.1,0.822]
[1750866714303,0.2072,2408.3,2408.1,0.822]
[1750866715842,11.928,2409.0,2408.5,4.1518377]
[1750866716050,16.07920082,2409.0,2408.5,4.1518377]
[1750866716216,0.2072,2408.6,2408.5,4.1518377]
[1750866716566,0.2072,2408.6,2408.1,5.18170347]
[1750866716743,11.928,2409.0,2408.1,2.60237035]
[1750866716940,0.2072,2408.6,2408.4,4.15200719]
[1750866717146,0.2072,2408.6,2408.5,4.1519618]
[1750866717934,0.2072,2408.6,2408.5,4.9150618]
[1750866719749,0.2072,2408.6,2408.5,0.7631]
[1750866720058,0.2072,2408.6,2408.4,4.15203996]
[1750866720460,0.2072,2408.6,2408.3,4.35944286]
[1750866720824,0.2072,2408.6,2408.4,4.15209484]
[1750866721046,0.2072,2408.6,2408.3,5.71648963]
[1750866721241,4.15190698,2408.6,2408.2,0.8104]
[1750866721553,0.2072,2408.4,2408.1,10.0]
[1750866721758,4.35933616,2408.4,2408.1,10.0]
[1750866721945,0.2072,2408.4,2408.0,14.96677482]
[1750866722155,0.2072,2408.4,2408.2,4.15231171]
[1750866722347,0.2072,2408.4,2408.3,4.1523066]
[1750866722657,0.2072,2408.4,2408.2,4.64904218]
[1750866723228,0.2072,2408.4,2408.1,4.15251008]
[1750866724242,4.35943945,2408.4,2408.0,0.814]
[1750866724422,4.35943945,2408.4,2407.9,4.3601045]
[1750866725428,1.928,2408.5,2407.9,4.1529937]
[1750866725627,0.2072,2408.2,2408.0,4.15273216]
[1750866725953,0.2072,2408.2,2407.9,4.15292865]
[1750866726161,0.2072,2408.2,2407.8,4.15309299]
[1750866726358,0.2072,2408.2,2407.9,4.15299305]
[1750866726729,0.2072,2408.2,2407.7,4.36051984]
[1750866726958,0.2072,2408.2,2408.1,4.15265146]
[1750866727461,1.928,2408.5,2407.9,0.8199]
[1750866727758,0.2072,2408.4,2408.3,4.1523066]
[1750866728738,7.83857929,2408.9,2408.1,12.30397842]
[1750866728930,1.928,2408.9,2408.8,4.1514447]
[1750866729158,0.2072,2409.0,2408.7,4.90893383]
[1750866729645,0.2072,2409.0,2408.8,4.15141147]
[1750866730025,0.2072,2409.0,2408.6,4.15171002]
[1750866730234,4.35832522,2409.0,2408.5,4.35906821]
[1750866730437,0.85092679,2408.9,2408.5,4.35906821]
[1750866730767,0.2072,2409.0,2408.7,4.1515952]
[1750866730982,0.2072,2409.0,2408.6,4.15169792]
[1750866731282,0.2072,2409.0,2408.7,4.15157984]
[1750866731437,0.2072,2409.0,2408.8,4.15132298]
[1750866732774,0.2072,2409.0,2408.7,4.15154809]
[1750866733272,0.2072,2409.0,2408.7,4.15152102]
[1750866734370,0.2072,2409.0,2408.8,4.1514447]
[1750866734590,0.2072,2409.0,2408.5,0.2072]
[1750866734738,10.0,2408.9,2407.7,0.7845]
[1750866734937,10.0,2408.7,2408.0,4.15268949]
[1750866735189,8.989,2408.7,2407.7,0.7845]
[1750866735391,4.15179112,2408.6,2408.1,4.15252175]
[1750866735893,4.15208928,2408.5,2407.9,14.93740465]
[1750866736486,4.152183,2408.4,2407.9,14.15290465]
[1750866737186,4.15231534,2408.3,2407.8,14.15308726]
[1750866737562,4.15198547,2408.5,2407.8,4.15311918]
[1750866737563,4.15205325,2408.5,2407.8,4.15311918]
[1750866737761,5.88119604,2408.6,2407.9,4.1528634]
[1750866738063,4.15215987,2408.4,2407.9,4.1528634]
[1750866738890,4.15243018,2408.3,2407.7,14.15320436]
[1750866739787,8.988,2408.2,2407.2,1.1972392]
[1750866739968,4.15337659,2407.7,2407.2,0.7825]
[1750866740170,4.15337659,2407.7,2407.0,4.15438175]
[1750866740171,4.15347909,2407.7,2407.0,4.15438175]
[1750866740372,6.08146954,2407.7,2407.2,4.15410531]
[1750866741080,6.08146954,2407.7,2407.2,0.8308461]
[1750866741081,1.928,2407.7,2407.2,0.8308461]
[1750866741249,1.928,2407.7,2407.3,4.15392653]
[1750866741451,1.928,2407.7,2407.4,4.15384989]
[1750866742085,4.15328762,2407.8,2407.1,4.15430629]
[1750866742254,6.08128762,2407.8,2407.2,4.15410203]
[1750866742870,4.1536315,2407.6,2406.9,0.7825]
[1750866743084,4.15380668,2407.5,2406.9,4.9371783]
[1750866743351,4.15394432,2407.4,2406.9,0.7825]
[1750866743557,4.15394432,2407.4,2406.9,4.93715976]
[1750866743774,4.15371376,2407.5,2406.9,0.7825]
[1750866743981,0.54678425,2407.5,2406.9,0.7825]
[1750866744168,4.15395497,2407.4,2406.9,0.7825]
[1750866744365,4.15395497,2407.4,2406.9,14.93710594]
[1750866744589,4.1537501,2407.5,2407.0,4.15444159]
[1750866744887,0.2072,2407.1,2407.0,4.15454923]
[1750866745049,4.15327464,2407.8,2406.9,0.7825]
[1750866745050,0.2072,2407.3,2407.2,4.15420405]
[1750866746664,0.2072,2407.3,2406.8,0.2072]
[1750866746888,1.924,2407.6,2405.6,0.83000282]
[1750866746889,10.0,2407.6,2406.3,0.7559]
[1750866747060,4.15446898,2407.1,2406.4,4.15555342]
[1750866747256,4.1545561,2407.0,2406.4,4.15555342]
[1750866747453,4.15496941,2406.8,2406.3,0.7559]
[1750866747695,1.924,2407.1,2406.1,4.91188994]
[1750866747988,1.924,2407.1,2406.1,0.7559]
[1750866748287,4.15506045,2406.8,2406.2,4.15576751]
[1750866748487,4.15510253,2406.7,2406.2,4.15576751]
[1750866748665,1.31382389,2407.0,2406.1,0.7559]
[1750866748999,5.46840028,2407.0,2406.1,4.91197933]
[1750866749168,8.986,2406.9,2406.5,4.15541128]
[1750866749370,1.44544003,2406.8,2406.5,4.15541128]
[1750866750058,1.44544003,2406.8,2406.4,4.15549325]
[1750866750463,1.44544003,2406.8,2406.5,4.15539057]
[1750866750656,1.44544003,2406.8,2406.4,4.15550156]
[1750866750858,1.44544003,2406.8,2406.1,4.91183912]
[1750866751084,5.19829678,2406.7,2406.1,0.7559]
[1750866751271,5.19829678,2406.7,2406.2,4.15584391]
[1750866751472,1.043144,2406.7,2406.1,0.7559]
[1750866751657,1.043144,2406.7,2406.2,4.15593051]
[1750866751881,1.043144,2406.7,2406.1,0.7559]
[1750866752096,8.987,2406.8,2406.6,4.15523975]
[1750866752304,11.99237728,2407.5,2407.3,4.153949]
[1750866752305,7.83857929,2407.5,2407.3,4.153949]
[1750866752795,7.83857929,2407.5,2407.2,4.15412771]
[1750866752962,0.78385793,2407.4,2406.7,0.7681]
[1750866753159,4.15421837,2407.2,2406.7,4.15500151]
[1750866753387,13.14021837,2407.2,2406.7,4.15500151]
[1750866753788,8.986,2407.2,2406.1,1.13059]
[1750866753987,0.8986,2407.1,2406.2,0.7689]
[1750866754302,4.15525639,2406.6,2406.0,4.15611747]
[1750866754597,4.15525639,2406.6,2405.9,0.7689]
[1750866754598,4.15525639,2406.6,2406.1,4.15605371]
[1750866754796,8.986,2406.7,2405.9,0.7689]
[1750866755006,0.8986,2406.6,2405.9,4.9253031]
[1750866755296,4.1555488,2406.5,2405.9,4.15635848]
[1750866755602,4.1556682,2406.4,2405.9,4.15635408]
[1750866756169,4.15558724,2406.4,2405.6,11.22890141]
[1750866756369,9.8846,2406.6,2406.1,4.15594671]
[1750866756768,0.2072,2406.4,2406.2,4.15592724]
[1750866757499,0.2072,2406.4,2406.1,4.15604132]
[1750866757678,0.2072,2406.4,2406.2,4.15583388]
[1750866757878,0.2072,2406.4,2406.3,4.1557578]
[1750866758892,0.2072,2406.4,2406.2,4.15592778]
[1750866759095,0.2072,2406.4,2406.0,4.15618186]
[1750866759286,0.2072,2406.4,2406.1,4.1561032]
[1750866759865,0.2072,2406.4,2406.0,4.15623223]
[1750866760065,0.2072,2406.4,2406.2,4.15581106]
[1750866760805,0.2072,2406.4,2405.9,0.2072]
[1750866760806,0.2072,2406.4,2406.3,4.1557578]
[1750866761177,0.2072,2406.7,2406.3,1.85226555]
[1750866761485,0.2072,2406.7,2406.5,4.15539534]
[1750866761681,0.2072,2406.7,2406.4,4.15548598]
[1750866761905,0.2072,2406.7,2405.3,4.15743661]
[1750866761906,4.36236355,2406.7,2406.2,4.15584473]
[1750866762112,0.2072,2406.4,2406.3,4.15575649]
[1750866762876,0.2072,2406.4,2406.1,4.92073593]
[1750866763077,0.2072,2406.4,2406.0,0.2072]
[1750866763382,0.2072,2406.2,2405.9,0.7758]
[1750866763596,0.2072,2406.2,2406.0,4.15627597]
[1750866763799,0.2072,2406.2,2406.1,4.15610323]
[1750866764807,0.7625,2406.6,2406.1,4.15610323]
[1750866764808,8.987,2406.6,2406.5,4.15541242]
[1750866765009,1.90554635,2406.8,2406.2,4.15589264]
[1750866765190,0.2072,2406.8,2406.7,4.15498624]
[1750866765703,0.2072,2406.8,2406.5,4.15526552]
[1750866765906,0.2072,2406.8,2406.6,4.15513299]
[1750866766127,0.2072,2406.8,2406.3,4.36288421]
[1750866766408,0.2072,2406.8,2406.6,4.1550714]
[1750866766577,0.2072,2406.8,2406.7,4.1550671]
[1750866767215,0.2072,2406.8,2406.6,4.15510285]
[1750866767706,0.2072,2406.8,2406.5,4.15537255]
[1750866768309,0.2072,2406.8,2406.5,4.15530874]
[1750866769016,0.2072,2406.8,2406.4,4.97476088]
[1750866769017,0.2072,2406.8,2406.7,4.1550671]
[1750866769415,0.2072,2406.9,2406.7,4.15490615]
[1750866769586,0.2072,2406.9,2406.8,4.15489446]
[1750866772505,0.767,2408.0,2407.3,0.8143]
[1750866772683,0.2072,2407.6,2407.5,4.15360433]
[1750866772881,0.767,2408.0,2407.6,4.15349181]
[1750866773082,0.767,2407.8,2406.9,0.8143]
[1750866773282,0.2072,2407.2,2407.0,4.15441117]
[1750866773588,0.2072,2407.2,2406.9,0.8143]
[1750866773918,0.2072,2407.2,2406.9,4.96897331]
[1750866774215,0.2072,2407.2,2407.0,4.1545274]
[1750866774403,0.2072,2407.2,2406.9,0.8143]
[1750866774600,0.2072,2407.2,2406.9,1.3319327]
[1750866774802,0.767,2407.8,2407.0,0.7572]
[1750866774803,0.2072,2407.4,2407.0,0.7572]
[1750866775008,7.2672,2407.7,2407.4,4.153847]
[1750866775585,4.91969183,2408.1,2407.2,1.3643]
[1750866775785,0.2072,2407.8,2407.3,0.2072]
[1750866775986,4.15336041,2407.7,2407.3,0.2072]
[1750866776190,5.00471881,2407.7,2407.3,0.2072]
[1750866776590,0.8513584,2407.7,2407.3,4.36122306]
[1750866776801,0.2072,2407.8,2407.4,4.15385893]
[1750866777004,0.2072,2407.8,2407.3,4.36113968]
[1750866777416,4.15311496,2407.9,2407.4,4.15373055]
[1750866777921,0.2072,2407.4,2407.3,4.15394816]
[1750866778592,0.2072,2407.6,2407.4,4.15378128]
[1750866779899,0.2072,2407.6,2407.2,1.0215]
[1750866780225,0.2072,2407.6,2407.4,4.15377904]
[1750866781030,0.2072,2407.6,2407.5,4.15368639]
[1750866781331,0.2072,2407.6,2407.4,4.15377937]
[1750866781539,0.2072,2407.6,2407.3,4.15393633]
[1750866781828,0.2072,2407.6,2407.4,4.15384318]
[1750866782194,0.2072,2407.6,2407.5,4.15368639]
[1750866783036,0.2072,2408.3,2407.7,0.7506]
[1750866783203,0.2072,2408.3,2407.9,4.15299638]
[1750866783550,0.2072,2408.3,2407.9,4.36010381]
[1750866783832,4.35951771,2408.3,2407.9,0.2072]
[1750866784044,0.7758,2408.1,2407.4,0.7684]
[1750866784251,4.15343249,2407.7,2407.2,0.2072]
[1750866784453,11.98657376,2408.1,2407.6,4.15349922]
[1750866784642,0.2072,2407.8,2407.6,4.15349922]
[1750866784813,1.39085738,2408.0,2407.6,4.15349922]
[1750866785211,0.7758,2408.1,2407.7,4.15320436]
[1750866785440,0.7758,2408.1,2407.5,4.15359819]
[1750866785747,4.92845911,2408.1,2407.6,4.15343416]
[1750866785930,0.7758,2408.1,2407.6,4.15348158]
[1750866786246,0.7758,2408.1,2407.7,4.15330152]
[1750866786407,0.49283604,2408.0,2407.6,4.94091927]
[1750866786604,0.7758,2408.3,2407.6,0.7875]
[1750866786809,7.83857929,2408.4,2408.0,4.15274316]
[1750866786810,14.89557929,2408.4,2408.0,4.15274316]
[1750866787351,19.04773929,2408.4,2407.9,4.15292154]
[1750866787654,4.15277341,2408.1,2407.6,4.94099791]
[1750866787953,4.15314168,2407.9,2407.4,4.9702598]
[1750866789115,0.83052524,2408.0,2407.3,4.15402605]
[1750866789116,4.92903125,2407.8,2407.3,4.15402605]
[1750866790120,0.7758,2407.8,2407.4,4.15384332]
[1750866790327,8.66232524,2408.0,2407.4,4.15374624]
[1750866790636,8.66232524,2408.0,2407.5,4.15368639]
[1750866790814,1.28150599,2407.9,2407.6,4.153493]
[1750866791007,1.28150599,2407.9,2407.4,10.0]
[1750866791213,5.4346116,2407.9,2407.4,4.15378216]
[1750866792147,1.28150599,2407.9,2407.3,0.55]
[1750866792315,1.28150599,2407.9,2407.6,4.1534019]
[1750866792714,0.42430731,2407.8,2407.3,4.70395606]
[1750866792940,0.42430731,2407.8,2407.2,0.8103]
[1750866793139,0.42430731,2407.8,2407.3,4.15390485]
[1750866793140,4.5775526,2407.8,2407.3,4.15390485]
[1750866793335,4.5775526,2407.8,2407.0,10.8057]
[1750866793538,0.7577,2407.6,2407.2,4.1540977]
[1750866793735,1.29124398,2407.6,2407.2,4.1540977]
[1750866793935,0.53354398,2407.6,2407.4,4.15384193]
[1750866794248,1.18270731,2407.8,2407.4,4.15384193]
[1750866794456,1.18270731,2407.8,2407.6,4.15350793]
[1750866794636,1.18270731,2407.8,2407.5,4.15362968]
[1750866795448,0.2072,2407.5,2407.2,10.0]
[1750866795659,1.18270731,2407.8,2407.4,4.1537199]
[1750866795955,4.15354613,2407.6,2407.2,10.2072]
[1750866796129,4.39988836,2407.7,2407.2,14.15418762]
[1750866796324,0.2072,2407.5,2407.3,4.1540208]
[1750866797347,0.2072,2407.5,2407.4,4.15385893]
[1750866798347,0.2072,2407.7,2407.6,4.15341522]
[1750866798652,0.2072,2407.7,2407.5,4.15361231]
[1750866798950,0.2072,2407.7,2407.6,4.15351387]
[1750866799316,8.978,2408.0,2407.6,4.15351387]
[1750866799615,15.64597929,2408.4,2407.8,0.55]
[1750866799815,0.2072,2408.3,2408.2,4.15237458]
[1750866800064,1.20086,2408.3,2408.2,4.15237458]
[1750866801214,0.2072,2408.3,2408.2,4.15237458]
[1750866801445,7.054,2408.7,2408.6,4.15178942]
[1750866801619,1.922,2408.9,2408.7,4.15161705]
[1750866801818,2.1292,2408.9,2408.7,4.15161705]
[1750866802041,2.1292,2408.9,2408.8,4.1514447]
[1750866802350,2.1292,2408.9,2408.7,4.15147273]
[1750866802650,0.2905,2408.8,2408.7,4.15147273]
[1750866802949,2.1292,2408.9,2408.7,4.15147273]
[1750866803318,0.2072,2408.9,2408.8,4.1514447]
[1750866803930,0.2072,2408.9,2408.7,4.15147749]
[1750866804132,0.2072,2408.9,2408.8,4.1514447]
[1750866804350,0.2072,2408.9,2408.7,4.15154275]
[1750866804766,0.2072,2408.9,2408.8,4.1514447]
[1750866805923,0.2072,2408.9,2408.7,4.15156131]
[1750866806124,0.2072,2408.9,2408.8,4.1514447]